[Event "Kvibergspelen September 2019"]
[Site "Prioritet Serneke Arena, Krutvagen 2, Gothenburg, Sweden"]
[Date "2019.09.27"]
[Round "3.11"]
[White "Ernst, Thomas"]
[Black "Lyngsjo, Hakan"]
[Result "0-1"]
[TimeControl "15 minutes + 5 seconds per move from move one (Round 1 - 4) / 90 minutes + 30 seconds per move from move one (Round 5 - 8)"]
[WhiteTitle "GM"]
[WhiteFideId "1700065"]
[BlackFideId "1701649"]
[WhiteElo "2328"]
[BlackElo "2031"]

1. e4 {[%clk 00:15:07]} {[%emt 00:00:02]} Nf6 {[%clk 00:15:06]} {[%emt
00:00:04]} 2. e5 {[%clk 00:15:11]} {[%emt 00:00:02]} Nd5 {[%clk 00:15:09]}
{[%emt 00:00:02]} 3. d4 {[%clk 00:15:14]} {[%emt 00:00:02]} d6 {[%clk
00:15:12]} {[%emt 00:00:02]} 4. Nf3 {[%clk 00:15:16]} {[%emt 00:00:03]} dxe5
{[%clk 00:15:11]} {[%emt 00:00:06]} 5. Nxe5 {[%clk 00:15:20]} {[%emt 00:00:02]}
c6 {[%clk 00:15:15]} {[%emt 00:00:01]} 6. Bc4 {[%clk 00:15:01]} {[%emt
00:00:24]} Nd7 {[%clk 00:15:06]} {[%emt 00:00:14]} 7. Nd3 {[%clk 00:15:00]}
{[%emt 00:00:05]} N7b6 {[%clk 00:14:43]} {[%emt 00:00:28]} 8. Bb3 {[%clk
00:15:02]} {[%emt 00:00:03]} g6 {[%clk 00:14:32]} {[%emt 00:00:17]} 9. Nd2
{[%clk 00:14:32]} {[%emt 00:00:35]} Bg7 {[%clk 00:14:26]} {[%emt 00:00:11]} 10.
Nf3 {[%clk 00:14:33]} {[%emt 00:00:04]} Bg4 {[%clk 00:14:09]} {[%emt 00:00:22]}
11. c3 {[%clk 00:14:26]} {[%emt 00:00:12]} O-O {[%clk 00:13:58]} {[%emt
00:00:16]} 12. O-O {[%clk 00:14:24]} {[%emt 00:00:07]} Rc8 {[%clk 00:11:16]}
{[%emt 00:02:47]} 13. h3 {[%clk 00:14:21]} {[%emt 00:00:08]} Bxf3 {[%clk
00:11:18]} {[%emt 00:00:03]} 14. Qxf3 {[%clk 00:14:24]} {[%emt 00:00:02]} e6
{[%clk 00:11:06]} {[%emt 00:00:17]} 15. Rd1 {[%clk 00:13:24]} {[%emt 00:01:05]}
Nd7 {[%clk 00:10:44]} {[%emt 00:00:27]} 16. Qg3 {[%clk 00:13:03]} {[%emt
00:00:24]} Qc7 {[%clk 00:10:03]} {[%emt 00:00:48]} 17. Qh4 {[%clk 00:13:01]}
{[%emt 00:00:07]} Rfe8 {[%clk 00:09:10]} {[%emt 00:01:00]} 18. Bh6 {[%clk
00:12:33]} {[%emt 00:00:30]} Ne7 {[%clk 00:08:09]} {[%emt 00:01:08]} 19. Bxg7
{[%clk 00:12:15]} {[%emt 00:00:23]} Nf5 {[%clk 00:07:41]} {[%emt 00:00:33]} 20.
Qe4 {[%clk 00:12:01]} {[%emt 00:00:18]} Kxg7 {[%clk 00:07:39]} {[%emt
00:00:07]} 21. Re1 {[%clk 00:10:13]} {[%emt 00:01:53]} b6 {[%clk 00:07:05]}
{[%emt 00:00:40]} 22. Ne5 {[%clk 00:09:45]} {[%emt 00:00:32]} Nxe5 {[%clk
00:06:45]} {[%emt 00:00:26]} 23. dxe5 {[%clk 00:09:27]} {[%emt 00:00:23]} c5
{[%clk 00:06:36]} {[%emt 00:00:14]} 24. Rad1 {[%clk 00:08:54]} {[%emt
00:00:39]} Red8 {[%clk 00:06:20]} {[%emt 00:00:21]} 25. Kf1 {[%clk 00:08:32]}
{[%emt 00:00:26]} Rxd1 {[%clk 00:05:58]} {[%emt 00:00:27]} 26. Rxd1 {[%clk
00:08:34]} {[%emt 00:00:03]} Rd8 {[%clk 00:05:56]} {[%emt 00:00:07]} 27. Rxd8
{[%clk 00:08:20]} {[%emt 00:00:19]} Qxd8 {[%clk 00:06:00]} {[%emt 00:00:01]} 28.
Ke2 {[%clk 00:08:16]} {[%emt 00:00:07]} Qd7 {[%clk 00:05:22]} {[%emt 00:00:45]}
29. Ba4 {[%clk 00:07:30]} {[%emt 00:00:50]} b5 {[%clk 00:04:44]} {[%emt
00:00:43]} 30. Bc2 {[%clk 00:07:17]} {[%emt 00:00:17]} Ne7 {[%clk 00:04:21]}
{[%emt 00:00:30]} 31. Qd3 {[%clk 00:06:45]} {[%emt 00:00:37]} Nd5 {[%clk
00:03:58]} {[%emt 00:00:28]} 32. g3 {[%clk 00:06:42]} {[%emt 00:00:08]} Qc6
{[%clk 00:03:24]} {[%emt 00:00:39]} 33. a3 {[%clk 00:06:23]} {[%emt 00:00:24]}
a5 {[%clk 00:03:00]} {[%emt 00:00:29]} 34. Qe4 {[%clk 00:06:09]} {[%emt
00:00:16]} Qc7 {[%clk 00:02:32]} {[%emt 00:00:36]} 35. f4 {[%clk 00:05:48]}
{[%emt 00:00:26]} b4 {[%clk 00:02:25]} {[%emt 00:00:12]} 36. c4 {[%clk
00:05:21]} {[%emt 00:00:31]} Ne7 {[%clk 00:02:20]} {[%emt 00:00:11]} 37. Qe3
{[%clk 00:05:05]} {[%emt 00:00:20]} Qc6 {[%clk 00:01:25]} {[%emt 00:01:00]} 38.
Be4 {[%clk 00:04:19]} {[%emt 00:00:51]} Qb6 {[%clk 00:01:30]} {[%emt 00:00:01]}
39. a4 {[%clk 00:03:51]} {[%emt 00:00:33]} Nc6 {[%clk 00:01:29]} {[%emt
00:00:06]} 40. Bxc6 {[%clk 00:03:42]} {[%emt 00:00:14]} Qxc6 {[%clk 00:01:33]}
{[%emt 00:00:01]} 41. Kd2 {[%clk 00:03:29]} {[%emt 00:00:17]} Qg2+ {[%clk
00:01:32]} {[%emt 00:00:05]} 42. Kc1 {[%clk 00:03:30]} {[%emt 00:00:04]} Qf1+
{[%clk 00:01:22]} {[%emt 00:00:15]} 43. Kd2 {[%clk 00:03:33]} {[%emt 00:00:02]}
Qxc4 {[%clk 00:01:26]} {[%emt 00:00:01]} 44. b3 {[%clk 00:03:36]} {[%emt
00:00:02]} Qd5+ {[%clk 00:01:22]} {[%emt 00:00:09]} 45. Qd3 {[%clk 00:03:37]}
{[%emt 00:00:04]} Kf8 {[%clk 00:01:16]} {[%emt 00:00:11]} 46. Kc2 {[%clk
00:03:27]} {[%emt 00:00:14]} Ke7 {[%clk 00:01:20]} {[%emt 00:00:02]} 47. Qa6
{[%emt 00:00:04]} Qe4+ {[%clk 00:01:15]} {[%emt 00:00:09]} 48. Kd2 {[%clk
00:03:32]} {[%emt 00:00:03]} Qd5+ {[%clk 00:01:13]} {[%emt 00:00:07]} 49. Kc2
{[%clk 00:03:34]} {[%emt 00:00:02]} Qg2+ {[%clk 00:00:54]} {[%emt 00:00:25]} 50.
Kc1 {[%clk 00:03:35]} {[%emt 00:00:03]} Qxg3 {[%clk 00:00:52]} {[%emt
00:00:08]} 51. Qa7+ {[%clk 00:03:37]} {[%emt 00:00:03]} Kf8 {[%clk 00:00:39]}
{[%emt 00:00:18]} 52. Qxc5+ {[%clk 00:03:40]} {[%emt 00:00:02]} Kg7 {[%clk
00:00:43]} 53. Qxa5 {[%clk 00:03:40]} {[%emt 00:00:06]} Qxf4+ {[%clk 00:00:47]}
54. Kd1 {[%clk 00:03:40]} {[%emt 00:00:04]} Qf3+ {[%clk 00:00:48]} {[%emt
00:00:05]} 55. Kd2 {[%clk 00:03:40]} {[%emt 00:00:04]} Qxb3 {[%clk 00:00:49]}
{[%emt 00:00:04]} 56. Qb5 {[%clk 00:03:38]} {[%emt 00:00:06]} Qc3+ {[%clk
00:00:49]} {[%emt 00:00:05]} 57. Ke2 {[%clk 00:03:29]} {[%emt 00:00:14]} b3
{[%clk 00:00:51]} {[%emt 00:00:04]} 58. Qd3 {[%clk 00:03:31]} {[%emt 00:00:03]}
Qxe5+ {[%clk 00:00:49]} {[%emt 00:00:07]} 59. Kf3 {[%clk 00:03:34]} {[%emt
00:00:02]} b2 {[%clk 00:00:39]} {[%emt 00:00:15]} 60. a5 {[%clk 00:03:36]}
{[%emt 00:00:03]} Qf5+ {[%clk 00:00:42]} {[%emt 00:00:03]} 61. Qxf5 {[%clk
00:03:40]} {[%emt 00:00:01]} gxf5 {[%clk 00:00:46]} 62. a6 {[%clk 00:03:43]}
{[%emt 00:00:02]} b1=Q {[%clk 00:00:48]} {[%emt 00:00:02]} 63. a7 {[%clk
00:03:46]} {[%emt 00:00:02]} Qa1 {[%clk 00:00:50]} {[%emt 00:00:03]} 64. Kg3
{[%emt 00:00:04]} 0-1

[Event "Kvibergspelen September 2019"]
[Site "Prioritet Serneke Arena, Krutvagen 2, Gothenburg, Sweden"]
[Date "2019.09.27"]
[Round "3.13"]
[White "Lindberg, Bengt"]
[Black "Persson, Ulf"]
[Result "1-0"]
[TimeControl "15 minutes + 5 seconds per move from move one (Round 1 - 4) / 90 minutes + 30 seconds per move from move one (Round 5 - 8)"]
[WhiteTitle "IM"]
[WhiteFideId "1700359"]
[BlackFideId "1726854"]
[WhiteElo "2397"]
[BlackElo "1991"]

1. e4 {[%clk 00:15:07]} {[%emt 00:00:02]} c5 {[%clk 00:15:09]} {[%emt
00:00:02]} 2. Nf3 {[%clk 00:15:11]} {[%emt 00:00:02]} d6 {[%clk 00:15:13]} 3.
d4 {[%clk 00:15:15]} cxd4 {[%clk 00:15:17]} 4. Nxd4 {[%clk 00:15:17]} {[%emt
00:00:02]} Nf6 {[%clk 00:15:19]} {[%emt 00:00:04]} 5. Nc3 {[%clk 00:15:20]}
{[%emt 00:00:01]} a6 {[%clk 00:15:23]} {[%emt 00:00:01]} 6. Be3 {[%clk
00:15:22]} {[%emt 00:00:03]} Ng4 {[%clk 00:15:25]} {[%emt 00:00:04]} 7. Bg5
{[%clk 00:15:22]} {[%emt 00:00:04]} h6 {[%clk 00:15:25]} {[%emt 00:00:06]} 8.
Bc1 {[%clk 00:15:19]} {[%emt 00:00:08]} Nc6 {[%clk 00:15:04]} {[%emt 00:00:27]}
9. Nxc6 {[%clk 00:15:11]} {[%emt 00:00:13]} bxc6 {[%clk 00:15:06]} {[%emt
00:00:02]} 10. h3 {[%clk 00:15:05]} {[%emt 00:00:10]} Nf6 {[%clk 00:15:01]}
{[%emt 00:00:11]} 11. Bc4 {[%clk 00:15:00]} {[%emt 00:00:09]} e6 {[%clk
00:15:02]} {[%emt 00:00:05]} 12. O-O {[%clk 00:14:13]} {[%emt 00:00:51]} Be7
{[%clk 00:15:04]} {[%emt 00:00:03]} 13. b3 {[%clk 00:13:23]} {[%emt 00:00:55]}
O-O {[%clk 00:14:35]} {[%emt 00:00:34]} 14. Bb2 {[%clk 00:13:19]} {[%emt
00:00:09]} d5 {[%clk 00:14:13]} {[%emt 00:00:28]} 15. Bd3 {[%clk 00:13:21]}
{[%emt 00:00:03]} e5 {[%clk 00:12:18]} {[%emt 00:02:00]} 16. Qe2 {[%clk
00:13:09]} {[%emt 00:00:16]} Bd6 {[%clk 00:11:42]} {[%emt 00:00:42]} 17. exd5
{[%clk 00:10:24]} {[%emt 00:02:50]} cxd5 {[%clk 00:11:28]} {[%emt 00:00:18]} 18.
Nxd5 {[%clk 00:09:31]} {[%emt 00:00:58]} Bb7 {[%clk 00:07:56]} {[%emt
00:03:38]} 19. Nxf6+ {[%clk 00:09:32]} {[%emt 00:00:04]} Qxf6 {[%clk 00:07:58]}
{[%emt 00:00:03]} 20. f4 {[%clk 00:08:06]} {[%emt 00:01:31]} Bc5+ {[%clk
00:04:50]} {[%emt 00:03:13]} 21. Kh2 {[%clk 00:07:44]} {[%emt 00:00:26]} Qc6
{[%emt 00:01:13]} 22. fxe5 {[%clk 00:07:33]} {[%emt 00:00:13]} Rae8 {[%clk
00:03:44]} {[%emt 00:00:07]} 23. Rf4 {[%clk 00:06:00]} {[%emt 00:01:38]} Bd6
{[%clk 00:01:15]} {[%emt 00:02:34]} 24. Rg4 {[%clk 00:03:49]} {[%emt 00:02:15]}
g5 {[%clk 00:00:31]} {[%emt 00:00:50]} 25. Re1 {[%clk 00:01:42]} {[%emt
00:02:12]} f5 {[%clk 00:00:27]} {[%emt 00:00:09]} 26. Rg3 {[%clk 00:01:32]}
{[%emt 00:00:14]} Qc7 {[%clk 00:00:22]} {[%emt 00:00:12]} 27. Qh5 {[%clk
00:01:19]} {[%emt 00:00:17]} Qg7 {[%clk 00:00:15]} {[%emt 00:00:12]} 28. exd6
{[%clk 00:01:15]} {[%emt 00:00:09]} Qxb2 {[%clk 00:00:10]} {[%emt 00:00:10]} 29.
Rxe8 {[%clk 00:01:16]} {[%emt 00:00:04]} Qg7 {[%clk 00:00:12]} {[%emt
00:00:03]} 30. Bxf5 {[%clk 00:01:07]} {[%emt 00:00:14]} Bd5 {[%clk 00:00:11]}
{[%emt 00:00:06]} 31. d7 {[%emt 00:00:16]} Bf7 32. Rxf8+ {[%clk 00:00:59]}
{[%emt 00:00:01]} Qxf8 {[%clk 00:00:18]} {[%emt 00:00:03]} 33. Rxg5+ {[%clk
00:00:45]} {[%emt 00:00:19]} Kh8 {[%clk 00:00:10]} {[%emt 00:00:13]} 34. d8=Q
{[%clk 00:00:32]} {[%emt 00:00:18]} Qxd8 {[%clk 00:00:06]} {[%emt 00:00:09]} 35.
Qxh6# {[%emt 00:00:03]} 1-0

[Event "Kvibergspelen September 2019"]
[Site "Prioritet Serneke Arena, Krutvagen 2, Gothenburg, Sweden"]
[Date "2019.09.27"]
[Round "3.14"]
[White "Bjorkeroth, Johan"]
[Black "Sorensen, Hampus"]
[Result "0-1"]
[TimeControl "15 minutes + 5 seconds per move from move one (Round 1 - 4) / 90 minutes + 30 seconds per move from move one (Round 5 - 8)"]
[BlackTitle "FM"]
[WhiteFideId "1719106"]
[BlackFideId "8703884"]
[WhiteElo "2147"]
[BlackElo "2319"]

1. e4 {[%clk 00:15:08]} {[%emt 00:00:01]} e5 {[%clk 00:15:07]} {[%emt
00:00:04]} 2. Nf3 {[%clk 00:15:11]} {[%emt 00:00:01]} Nc6 {[%clk 00:15:04]}
{[%emt 00:00:08]} 3. Nc3 {[%clk 00:15:12]} {[%emt 00:00:03]} Nf6 {[%clk
00:15:06]} {[%emt 00:00:03]} 4. d4 {[%clk 00:15:08]} {[%emt 00:00:10]} exd4
{[%clk 00:15:07]} {[%emt 00:00:04]} 5. Nxd4 {[%clk 00:15:10]} {[%emt 00:00:02]}
Bc5 {[%clk 00:15:06]} {[%emt 00:00:06]} 6. Be3 {[%clk 00:15:12]} {[%emt
00:00:04]} Bb6 {[%clk 00:14:52]} {[%emt 00:00:19]} 7. Be2 {[%clk 00:13:46]}
{[%emt 00:01:31]} d6 {[%clk 00:14:34]} {[%emt 00:00:23]} 8. Nxc6 {[%clk
00:12:36]} {[%emt 00:01:15]} bxc6 {[%clk 00:14:36]} {[%emt 00:00:03]} 9. Bd4
{[%clk 00:10:39]} {[%emt 00:02:02]} Qe7 {[%clk 00:13:44]} {[%emt 00:00:56]} 10.
O-O {[%clk 00:09:29]} {[%emt 00:01:16]} O-O {[%clk 00:13:40]} {[%emt 00:00:09]}
11. Bf3 {[%clk 00:08:29]} {[%emt 00:01:05]} Nd7 {[%clk 00:13:20]} {[%emt
00:00:25]} 12. g3 {[%clk 00:07:45]} {[%emt 00:00:49]} Rb8 {[%clk 00:12:44]}
{[%emt 00:00:41]} 13. b3 {[%clk 00:06:52]} {[%emt 00:00:58]} Nc5 {[%clk
00:10:47]} {[%emt 00:02:02]} 14. Bxc5 {[%clk 00:02:55]} {[%emt 00:04:02]} Bxc5
{[%clk 00:10:45]} {[%emt 00:00:07]} 15. Na4 {[%clk 00:02:59]} {[%emt 00:00:01]}
Bb6 {[%clk 00:10:09]} {[%emt 00:00:41]} 16. Nxb6 {[%clk 00:03:01]} {[%emt
00:00:03]} axb6 {[%clk 00:10:12]} {[%emt 00:00:02]} 17. Re1 {[%clk 00:02:23]}
{[%emt 00:00:42]} Qe5 {[%clk 00:10:09]} {[%emt 00:00:08]} 18. Bg4 {[%clk
00:02:11]} {[%emt 00:00:17]} Ra8 {[%clk 00:08:27]} {[%emt 00:01:47]} 19. Bxc8
{[%clk 00:01:57]} {[%emt 00:00:20]} Rfxc8 {[%clk 00:08:31]} {[%emt 00:00:02]}
20. a4 {[%clk 00:01:48]} {[%emt 00:00:14]} Re8 {[%clk 00:08:25]} {[%emt
00:00:10]} 21. Qd3 {[%clk 00:01:20]} {[%emt 00:00:33]} Ra5 {[%clk 00:06:30]}
{[%emt 00:01:59]} 22. b4 {[%clk 00:00:38]} {[%emt 00:00:48]} Ra7 {[%clk
00:06:32]} {[%emt 00:00:03]} 23. Qc4 {[%clk 00:00:42]} c5 {[%clk 00:06:36]}
{[%emt 00:00:01]} 24. c3 {[%clk 00:00:31]} {[%emt 00:00:16]} Rea8 {[%clk
00:06:20]} {[%emt 00:00:20]} 25. f4 {[%clk 00:00:19]} {[%emt 00:00:18]} Qh5
{[%clk 00:05:51]} {[%emt 00:00:34]} 26. Qd5 {[%clk 00:00:13]} {[%emt 00:00:12]}
Qxd5 {[%clk 00:05:39]} {[%emt 00:00:16]} 27. exd5 {[%clk 00:00:17]} {[%emt
00:00:02]} Kf8 {[%clk 00:05:43]} 28. a5 {[%clk 00:00:14]} {[%emt 00:00:08]}
cxb4 {[%clk 00:05:15]} {[%emt 00:00:33]} 29. cxb4 {[%clk 00:00:14]} {[%emt
00:00:05]} bxa5 {[%clk 00:05:19]} 30. bxa5 {[%clk 00:00:12]} {[%emt 00:00:07]}
Rxa5 {[%clk 00:05:23]} {[%emt 00:00:01]} 31. Rac1 {[%clk 00:00:08]} {[%emt
00:00:08]} Rc5 {[%clk 00:04:49]} {[%emt 00:00:38]} 32. Rxc5 {[%clk 00:00:07]}
{[%emt 00:00:07]} dxc5 {[%clk 00:04:53]} {[%emt 00:00:01]} 33. Kf2 {[%clk
00:00:07]} {[%emt 00:00:06]} Rd8 {[%clk 00:04:23]} {[%emt 00:00:34]} 34. Rd1
{[%clk 00:00:06]} {[%emt 00:00:06]} Ke7 {[%clk 00:04:26]} {[%emt 00:00:02]} 35.
Ke3 {[%clk 00:00:10]} Kd6 {[%clk 00:04:20]} {[%emt 00:00:11]} 36. h4 {[%clk
00:00:07]} {[%emt 00:00:08]} Ra8 {[%clk 00:04:24]} 37. Rd3 {[%clk 00:00:09]}
{[%emt 00:00:04]} h5 {[%clk 00:04:18]} {[%emt 00:00:10]} 38. Ke4 {[%clk
00:00:06]} {[%emt 00:00:08]} Ra4+ {[%clk 00:04:01]} {[%emt 00:00:22]} 0-1

[Event "Kvibergspelen September 2019"]
[Site "Prioritet Serneke Arena, Krutvagen 2, Gothenburg, Sweden"]
[Date "2019.09.27"]
[Round "3.15"]
[White "Crevatin, Leo"]
[Black "Carlsson, Ludvig"]
[Result "0-1"]
[TimeControl "15 minutes + 5 seconds per move from move one (Round 1 - 4) / 90 minutes + 30 seconds per move from move one (Round 5 - 8)"]
[WhiteTitle "CM"]
[BlackTitle "CM"]
[WhiteFideId "1726307"]
[BlackFideId "1727010"]
[WhiteElo "2235"]
[BlackElo "2066"]

1. d4 {[%clk 00:15:08]} {[%emt 00:00:02]} e6 {[%clk 00:15:09]} {[%emt
00:00:02]} 2. c4 {[%clk 00:15:12]} {[%emt 00:00:01]} b6 {[%clk 00:15:12]}
{[%emt 00:00:01]} 3. e4 {[%clk 00:15:16]} {[%emt 00:00:02]} Bb7 {[%clk
00:15:16]} {[%emt 00:00:01]} 4. Bd3 {[%clk 00:15:20]} {[%emt 00:00:01]} Bb4+
{[%clk 00:15:19]} 5. Nd2 {[%clk 00:15:22]} {[%emt 00:00:03]} Nc6 {[%clk
00:15:21]} {[%emt 00:00:03]} 6. Ngf3 {[%clk 00:15:24]} {[%emt 00:00:02]} Qf6
{[%clk 00:15:21]} {[%emt 00:00:05]} 7. e5 {[%clk 00:15:04]} {[%emt 00:00:25]}
Qe7 {[%clk 00:14:04]} {[%emt 00:01:22]} 8. O-O {[%clk 00:14:27]} {[%emt
00:00:42]} g5 {[%clk 00:12:11]} {[%emt 00:01:58]} 9. d5 {[%clk 00:11:39]}
{[%emt 00:02:53]} exd5 {[%clk 00:11:20]} {[%emt 00:00:56]} 10. cxd5 {[%clk
00:11:43]} Nd8 {[%clk 00:11:24]} {[%emt 00:00:02]} 11. Ne4 {[%clk 00:10:33]}
{[%emt 00:01:15]} g4 {[%clk 00:10:31]} {[%emt 00:00:57]} 12. Nf6+ {[%clk
00:10:21]} {[%emt 00:00:17]} Nxf6 {[%clk 00:10:20]} {[%emt 00:00:17]} 13. exf6
{[%clk 00:10:24]} {[%emt 00:00:02]} Qxf6 {[%clk 00:10:21]} {[%emt 00:00:04]} 14.
Bg5 {[%clk 00:10:06]} {[%emt 00:00:22]} Qg7 {[%clk 00:10:15]} {[%emt 00:00:10]}
15. Re1+ {[%clk 00:08:23]} {[%emt 00:01:49]} Bxe1 {[%clk 00:09:51]} {[%emt
00:00:28]} 16. Qxe1+ {[%clk 00:08:27]} {[%emt 00:00:03]} Ne6 {[%clk 00:09:54]}
{[%emt 00:00:02]} 17. dxe6 {[%clk 00:08:18]} {[%emt 00:00:14]} fxe6 {[%clk
00:09:57]} {[%emt 00:00:02]} 18. Qe5 {[%clk 00:07:59]} {[%emt 00:00:25]} Qxe5
{[%clk 00:04:58]} {[%emt 00:05:03]} 19. Nxe5 {[%clk 00:08:03]} {[%emt
00:00:01]} Rg8 {[%clk 00:04:58]} {[%emt 00:00:05]} 20. Bh4 {[%clk 00:07:06]}
{[%emt 00:01:02]} d6 {[%clk 00:04:03]} {[%emt 00:01:00]} 21. Nc4 {[%clk
00:04:04]} {[%emt 00:03:07]} Kf7 {[%clk 00:03:57]} {[%emt 00:00:11]} 22. Bg3
{[%clk 00:03:33]} {[%emt 00:00:36]} Rg7 {[%clk 00:04:01]} 23. Re1 {[%clk
00:03:15]} {[%emt 00:00:23]} Rd8 {[%clk 00:03:53]} {[%emt 00:00:12]} 24. Bc2
{[%clk 00:02:49]} {[%emt 00:00:32]} a5 {[%clk 00:03:45]} {[%emt 00:00:14]} 25.
a4 {[%clk 00:02:41]} {[%emt 00:00:13]} h5 {[%clk 00:03:17]} {[%emt 00:00:32]}
26. Rc1 {[%clk 00:02:29]} {[%emt 00:00:17]} Rd7 {[%clk 00:02:48]} {[%emt
00:00:34]} 27. Bd3 {[%clk 00:02:13]} {[%emt 00:00:21]} Rg5 {[%clk 00:02:43]}
{[%emt 00:00:10]} 28. Ne3 {[%clk 00:02:02]} {[%emt 00:00:16]} Kf8 {[%clk
00:01:00]} {[%emt 00:01:48]} 29. Bb5 {[%clk 00:01:44]} {[%emt 00:00:23]} Rf7
{[%clk 00:00:57]} {[%emt 00:00:08]} 30. Kf1 {[%clk 00:01:09]} {[%emt 00:00:40]}
Be4 {[%clk 00:00:21]} {[%emt 00:00:41]} 31. Ke2 {[%clk 00:00:53]} {[%emt
00:00:22]} Kg8 {[%clk 00:00:13]} {[%emt 00:00:12]} 32. Rc4 {[%clk 00:00:30]}
{[%emt 00:00:27]} Bb7 {[%clk 00:00:16]} {[%emt 00:00:03]} 33. Be8 {[%clk
00:00:13]} {[%emt 00:00:23]} Ba6 {[%clk 00:00:18]} {[%emt 00:00:03]} 34. Bxf7+
{[%clk 00:00:14]} {[%emt 00:00:03]} Kxf7 {[%clk 00:00:22]} {[%emt 00:00:02]} 35.
Kd2 {[%clk 00:00:15]} {[%emt 00:00:04]} Bxc4 36. Nxc4 {[%clk 00:00:19]} Rd5+
{[%clk 00:00:23]} {[%emt 00:00:05]} 37. Ke3 {[%clk 00:00:12]} {[%emt 00:00:12]}
Ke7 {[%clk 00:00:22]} {[%emt 00:00:07]} 38. Nd2 {[%clk 00:00:10]} {[%emt
00:00:07]} Rc5 {[%clk 00:00:19]} {[%emt 00:00:07]} 39. Kd3 {[%clk 00:00:11]}
{[%emt 00:00:04]} Kf7 {[%clk 00:00:16]} {[%emt 00:00:08]} 40. Bf4 {[%clk
00:00:13]} {[%emt 00:00:03]} Rd5+ {[%clk 00:00:19]} {[%emt 00:00:03]} 41. Ke3
{[%clk 00:00:11]} {[%emt 00:00:06]} e5 {[%clk 00:00:19]} {[%emt 00:00:05]} 42.
Bg3 {[%clk 00:00:15]} {[%emt 00:00:01]} Rd4 {[%clk 00:00:23]} 43. b3 {[%clk
00:00:19]} {[%emt 00:00:02]} Ke6 {[%clk 00:00:25]} {[%emt 00:00:03]} 44. f3
{[%clk 00:00:22]} {[%emt 00:00:02]} c6 {[%clk 00:00:24]} {[%emt 00:00:06]} 45.
fxg4 {[%clk 00:00:25]} {[%emt 00:00:02]} Rxg4 {[%clk 00:00:23]} {[%emt
00:00:06]} 46. Kf2 {[%clk 00:00:25]} {[%emt 00:00:05]} b5 {[%clk 00:00:26]}
{[%emt 00:00:02]} 47. axb5 {[%clk 00:00:26]} {[%emt 00:00:04]} cxb5 {[%clk
00:00:30]} {[%emt 00:00:01]} 48. h3 {[%clk 00:00:25]} {[%emt 00:00:06]} Rb4
{[%clk 00:00:33]} {[%emt 00:00:02]} 49. Ke2 {[%clk 00:00:29]} {[%emt 00:00:02]}
a4 {[%clk 00:00:37]} {[%emt 00:00:01]} 50. bxa4 {[%clk 00:00:30]} {[%emt
00:00:04]} bxa4 {[%clk 00:00:40]} 51. Kd3 {[%clk 00:00:30]} {[%emt 00:00:05]}
a3 {[%clk 00:00:42]} {[%emt 00:00:03]} 52. Kc3 {[%clk 00:00:22]} {[%emt
00:00:13]} Rb7 {[%clk 00:00:36]} {[%emt 00:00:11]} 53. Nb3 {[%clk 00:00:12]}
{[%emt 00:00:15]} a2 {[%clk 00:00:40]} 0-1

[Event "Kvibergspelen September 2019"]
[Site "Prioritet Serneke Arena, Krutvagen 2, Gothenburg, Sweden"]
[Date "2019.09.27"]
[Round "3.16"]
[White "Ronneland, Daniel"]
[Black "Wengholm, Anders"]
[Result "1/2-1/2"]
[TimeControl "15 minutes + 5 seconds per move from move one (Round 1 - 4) / 90 minutes + 30 seconds per move from move one (Round 5 - 8)"]
[WhiteFideId "1702130"]
[BlackFideId "1704818"]
[WhiteElo "2137"]
[BlackElo "2218"]

1. e4 {[%clk 00:15:06]} {[%emt 00:00:04]} c5 {[%clk 00:15:05]} {[%emt
00:00:06]} 2. Nf3 {[%clk 00:15:08]} {[%emt 00:00:02]} d6 {[%clk 00:15:09]}
{[%emt 00:00:01]} 3. d4 {[%clk 00:15:12]} {[%emt 00:00:01]} cxd4 {[%clk
00:15:13]} {[%emt 00:00:02]} 4. Nxd4 {[%clk 00:15:15]} Nf6 {[%clk 00:15:17]}
{[%emt 00:00:01]} 5. Nc3 {[%clk 00:15:19]} {[%emt 00:00:01]} e6 {[%clk
00:15:19]} {[%emt 00:00:04]} 6. Bg5 {[%clk 00:13:56]} {[%emt 00:01:27]} Be7
{[%clk 00:15:19]} {[%emt 00:00:05]} 7. f4 {[%clk 00:12:49]} {[%emt 00:01:12]}
h6 {[%clk 00:15:14]} {[%emt 00:00:10]} 8. Bh4 {[%clk 00:12:19]} {[%emt
00:00:35]} Nxe4 {[%clk 00:14:53]} {[%emt 00:00:26]} 9. Bxe7 {[%clk 00:12:14]}
{[%emt 00:00:10]} Nxc3 {[%clk 00:14:56]} {[%emt 00:00:01]} 10. Bxd8 {[%clk
00:12:04]} {[%emt 00:00:16]} Nxd1 {[%clk 00:15:00]} {[%emt 00:00:02]} 11. Rxd1
{[%clk 00:11:27]} {[%emt 00:00:42]} Kxd8 {[%clk 00:15:03]} {[%emt 00:00:01]} 12.
Nb5 {[%clk 00:10:58]} {[%emt 00:00:33]} Nc6 {[%clk 00:13:02]} {[%emt 00:02:07]}
13. Nxd6 {[%clk 00:10:40]} {[%emt 00:00:23]} Ke7 {[%clk 00:13:05]} {[%emt
00:00:02]} 14. Bb5 {[%clk 00:10:00]} {[%emt 00:00:44]} Rd8 {[%clk 00:10:58]}
{[%emt 00:02:13]} 15. Bxc6 {[%clk 00:08:13]} {[%emt 00:01:52]} Rxd6 {[%clk
00:10:16]} {[%emt 00:00:47]} 16. Rxd6 {[%clk 00:08:16]} {[%emt 00:00:02]} Kxd6
{[%clk 00:10:20]} {[%emt 00:00:01]} 17. Bf3 {[%clk 00:08:17]} {[%emt 00:00:04]}
Bd7 {[%clk 00:10:24]} {[%emt 00:00:02]} 18. Kd2 {[%clk 00:07:28]} {[%emt
00:00:52]} Rc8 {[%clk 00:10:11]} {[%emt 00:00:19]} 19. Rd1 {[%clk 00:06:53]}
{[%emt 00:00:40]} Bc6 {[%clk 00:09:57]} {[%emt 00:00:20]} 20. Bxc6 {[%clk
00:06:44]} {[%emt 00:00:14]} Rxc6 {[%clk 00:10:01]} {[%emt 00:00:02]} 21. Ke3+
{[%clk 00:06:28]} {[%emt 00:00:19]} 1/2-1/2